Cogmind - Beta 13 @@@ ROGUE MODE // 2024.06.17 @ 23:19:29 Player: nfd Result: Destroyed by Y-45 Defender with Heavy Assault Rifle Performance ------------- Evolutions (2) 1000 Regions Visited (6) 1200 Robots Destroyed (34) 170 Value Destroyed (1038) 1038 Prototype IDs (6) 120 Alien Tech Used (0) 0 Bonus (402) 402 TOTAL SCORE: 3930 Bonus ------- Follower Combat Kills 102 Aligned with FarCom 300 Cogmind --------- Core Integrity 0/550 Matter 267/300 Energy 100/100 System Corruption 36% Temperature Cool (0) Movement Rolling (100) Location -8/Storage Parts ------- > --- POWER (1) -------- (None) > --- PROPULSION (4) --- Light Treads Compact Wheel > --- UTILITY (4) ------ PSU Rigger > --- WEAPON (2) ------- Advanced EMP Blaster > --- INVENTORY (5) ---- Improved Heat Sink Small Battery (22) Compact Matter Pod (150) Authchip [R/Combat] Peak State ------------ > --- POWER ------------ Light Nuclear Core > --- PROPULSION ------- Carbon-fiber Leg Carbon-fiber Leg Carbon-fiber Leg Makeshift Leg > --- UTILITY ---------- Improved Heat Sink Medium Storage Unit Heavy Armor Plating > --- WEAPON ----------- Beamcaster Makeshift Hammer > --- INVENTORY -------- Light Nuclear Core Light Nuclear Core Subdweller Monowheel Small Battery Compact Matter Pod Authchip [R/Combat] PSU Rigger Grenade Launcher Mining Laser [Rating: 37] Favorites ----------- Power Light Nuclear Core Engine Light Ion Engine Power Core Light Nuclear Core Propulsion Aluminum Leg Treads Light Treads Leg Aluminum Leg Wheel Subdweller Monowheel Hover Unit Improved Hover Unit Flight Unit Flight Unit Utility Light Armor Plating Device PSU Rigger Storage Small Storage Unit Processor Machine Analyzer Protection Light Armor Plating Weapon Makeshift Hammer Energy Gun Beamcaster Ballistic Gun Heavy Assault Rifle Launcher Advanced EMP Blaster Special Weapon Mining Laser Impact Weapon Makeshift Hammer Build | -11 -10 -10 -10 -9 -8 -8 ------- Run | Yrd Mat Min Exi Min Mat Sto Slots Evolved 4 | . . . . . 4 . Power . | . . . . . . . Propulsion 2 | . . . . . 2 . Utility 2 | . . . . . 2 . Weapon . | . . . . . . . Parts Attached 70 | 6 7 8 2 8 23 16 Power 10 | 1 1 2 . 3 . 3 Engine 6 | 1 1 1 . 2 . 1 Core 4 | . . 1 . 1 . 2 Reactor . | . . . . . . . Propulsion 28 | 2 2 . . 5 11 8 Treads 3 | . . . . . . 3 Leg 14 | 2 2 . . 4 6 . Wheel 6 | . . . . 1 2 3 Hover 1 | . . . . . . 1 Flight 4 | . . . . . 3 1 Utility 16 | 1 2 1 1 . 10 1 Device 6 | . 1 . . . 5 . Storage 4 | 1 . . 1 . 2 . Processor 2 | . . . . . 1 1 Hackware . | . . . . . . . Protection 4 | . 1 1 . . 2 . Artifact . | . . . . . . . Weapon 16 | 2 2 5 1 . 2 4 Energy Gun 2 | . . . . . 1 1 Energy Cannon . | . . . . . . . Ballistic Gun 5 | 2 2 1 . . . . Ballistic Cannon . | . . . . . . . Launcher 4 | . . 2 . . . 2 Special Weapon 1 | . . . . . . 1 Impact Weapon 4 | . . 2 1 . 1 . Slashing Weapon . | . . . . . . . Piercing Weapon . | . . . . . . . Special Melee Weapon . | . . . . . . . Unidentified Prototypes 2 | . . . . . 1 1 Corrupted Parts 5 | . . . . . . 5 System Corruption 36 | . . . . . . 36 Parts Lost 16 | . 1 . . . 1 14 Power 2 | . . . . . . 2 Propulsion 5 | . . . . . . 5 Utility 5 | . 1 . . . 1 3 Weapon 4 | . . . . . . 4 Highest Loss Streak 7 | . 1 . . . 1 7 To Critical Strikes . | . . . . . . . Average Slot Usage (%) 95 | . 98 100 99 100 90 79 Engine 6 | . 14 13 . 10 . . Core 6 | . . . 14 3 9 7 Leg 21 | . 28 28 28 18 18 . Wheel 3 | . . . . 9 6 4 Flight 4 | . . . . . 10 19 Device 5 | . 2 . . . 14 17 Storage 12 | . 14 14 14 14 9 8 Protection 10 | . 9 13 14 14 7 . Ballistic Gun 15 | . 28 18 23 14 4 . Impact Weapon 7 | . . 8 4 14 8 8 Naked Turns . | . . . . . . . Heaviest Build 39 | 11 17 19 24 24 39 21 Greatest Support 65 | 20 20 20 20 25 65 60 Greatest Overweight (x) 2 | . . . 1 1 1 2 Average Overweight (x) . | . . . . . . . Largest Inventory Capacity 10 | 8 8 8 10 10 10 8 Average Capacity 8 | 7 8 8 9 10 8 7 Most Carried 10 | 4 8 8 10 10 10 8 Average Carried 7 | 2 6 7 8 9 7 6 Final Capacity 10 | 8 8 8 10 10 8 5 Final Carried 10 | 4 8 8 9 10 8 4 Class Distribution -------------------- 60% | Scavenger-Mutant 37% | Mutant Dominant Class ---------------- Mutant | -10/Materials Mutant | -10/Mines Scavenger-Mutant | -10/Exiles Scavenger-Mutant | -9/Mines Scavenger-Mutant | -8/Materials Scavenger-Mutant | -8/Storage Resources | -11 -10 -10 -10 -9 -8 -8 ----------- Run | Yrd Mat Min Exi Min Mat Sto Matter Collected 1268 | 219 398 94 . 182 243 132 Remotely . | . . . . . . . Salvage Created 1235 | . 167 140 . 134 181 613 Parts 62 | . 8 17 . 7 11 19 Haulers Intercepted . | . . . . . . . Recyclers Shooed . | . . . . . . . Parts Field Recycled . | . . . . . . . Retrieved Matter . | . . . . . . . Parts Self-Destructed . | . . . . . . . Prevented . | . . . . . . . Kills | -11 -10 -10 -10 -9 -8 -8 ------- Run | Yrd Mat Min Exi Min Mat Sto Combat Hostiles Destroyed 29 | . 6 8 . 3 5 7 Melee 7 | . . . . 2 4 1 Guns 10 | . 6 3 . . 1 . AOE 11 | . . 5 . . . 6 Classes Destroyed 7 | . 2 1 . 1 1 2 Tunneler 1 | . . . . 1 . . Recycler 3 | . . . . . . 3 Watcher 1 | . . . . . . 1 Swarmer 11 | . 3 6 . . 2 . Grunt 12 | . 3 . . 3 2 4 Sentry 5 | . . 2 . . . 3 Hunter 1 | . . . . . 1 . Best Kill Streak 7 | . 3 3 . 2 2 7 Combat Bots Only 6 | . 3 3 . 2 2 6 Max Kills in Single Turn 3 | . 1 3 . 1 1 2 Gunslinging . | . . . . . . . Exploded 3 | . . 3 . . . 2 Melee 1 | . . . . 1 1 1 Uniques/NPCs Destroyed . | . . . . . . . Combat | -11 -10 -10 -10 -9 -8 -8 -------- Run | Yrd Mat Min Exi Min Mat Sto Hostile Shots Fired 264 | . 42 18 . 22 23 159 Missed 84 | . 12 7 . 5 8 52 Damage Taken 2452 | . 348 112 . 210 127 1655 Core 623 | . 30 6 . 22 19 546 Absorbed by Shields . | . . . . . . . Core Remaining (%) 88 | 100 . . . 76 . . Volleys Fired 55 | . 21 9 . 4 6 15 Largest 2 | . 2 2 . 1 1 1 Hottest 100 | . 46 53 . 23 23 100 Shots Fired 83 | . 42 16 . 4 6 15 Gun 67 | . 42 14 . 4 6 1 Cannon . | . . . . . . . Launcher 11 | . . 2 . . . 9 Special 5 | . . . . . . 5 Kinetic 66 | . 42 14 . 4 6 . Thermal 6 | . . . . . . 6 Explosive 2 | . . 2 . . . . Electromagnetic 9 | . . . . . . 9 Robot Hit Streak 15 | . 12 15 . 6 2 3 Robot Miss Streak 3 | . 3 3 . 1 3 . Penetration Max . | . . . . . . . Secondary Targets 2 | . 1 1 . . . . Max Gunslinging Chain 1 | . 1 1 . . . . Shots Hit Robots 71 | . 29 14 . 11 7 10 Core Hits 47 | . 14 12 . 4 5 12 Critical Kills 1 | . . . . 1 . . Critical Parts Destroyed 1 | . . . . 1 . . Critical Strikes 3 | . . . . 2 . 1 Smash 3 | . . . . 2 . 1 Melee Attacks 33 | . . . . 9 11 13 Impact 33 | . . . . 9 11 13 Slashing . | . . . . . . . Piercing . | . . . . . . . Sneak Attacks 3 | . . . . 1 . 2 Combat Hostiles . | . . . . . . . Follow-up Attacks . | . . . . . . . Damage Inflicted 2249 | . 344 350 . 429 277 849 Guns 618 | . 344 186 . 57 31 . Cannons . | . . . . . . . Explosions 589 | . . 163 . . . 426 Melee 1041 | . . . . 372 246 423 Ramming 1 | . . 1 . . . . Kinetic 618 | . 344 186 . 57 31 . Thermal 46 | . . . . . . 46 Explosive 163 | . . 163 . . . . Electromagnetic 380 | . . . . . . 380 Impact 1041 | . . . . 372 246 423 Slashing . | . . . . . . . Piercing . | . . . . . . . Highest Corruption 36 | . . . . . . 36 Average Corruption 26 | . . . . . . 26 Corruption Purged . | . . . . . . . Corruption Blocked . | . . . . . . . Effects 3 | . . . . . . 3 Message Errors 1 | . . . . . . 1 Data Loss (minor) 1 | . . . . . . 1 Misdirections 1 | . . . . . . 1 Overload Shots . | . . . . . . . Overflow Damage 244 | . . . . 81 12 151 Projectiles . | . . . . . . . Explosions . | . . . . . . . Melee 244 | . . . . 81 12 151 Knockbacks 2 | . . . . . . 2 Impact 2 | . . . . . . 2 Kinetic . | . . . . . . . Secondary . | . . . . . . . Self-Inflicted Damage 18 | . . . . . . 18 Shots 1 | . . . . . . 1 Rammed . | . . . . . . . Targets Rammed 1 | . . 1 . . . . Kicked 1 | . . 1 . . . . Crushed . | . . . . . . . Highest Temperature 62 | . 21 . . 4 . 62 Average Temperature 15 | . 8 . . 4 . 23 Received Heat Transfer 1044 | . 90 27 . 117 9 801 Siege Activations . | . . . . . . . Robots Corrupted . | . . . . . . . Combat Hostiles . | . . . . . . . Parts Fried 9 | . . . . 4 . 5 Impact Corruptions 8 | . . . . 3 1 4 Robots Melted . | . . . . . . . Combat Hostiles . | . . . . . . . Parts Melted . | . . . . . . . Heat Transferred 100 | . . . . . . 100 Parts Sabotaged . | . . . . . . . Parts Stolen . | . . . . . . . Parts Stripped . | . . . . . . . Power Chain Reactions 2 | . . . . . . 2 Alert | -11 -10 -10 -10 -9 -8 -8 ------- Run | Yrd Mat Min Exi Min Mat Sto Peak Influence 309 | . 193 149 . 58 185 309 Initial 33 | . . 15 . . . 33 Average 62 | . 58 68 . 34 49 135 Maximum Alert Level 1 | . . . . . . 1 Low Security (%) 98 | 100 100 100 . 100 100 89 Level 1 1 | . . . . . . 10 Level 2 . | . . . . . . . Level 3 . | . . . . . . . Level 4 . | . . . . . . . Level 5 . | . . . . . . . High Security . | . . . . . . . Max Security . | . . . . . . . Squads Dispatched 4 | . 2 . . . 1 1 Investigation 3 | . 2 . . . 1 . Extermination . | . . . . . . . Reinforcement 1 | . . . . . . 1 Assault . | . . . . . . . Garrison . | . . . . . . . Intercept . | . . . . . . . Searches Triggered . | . . . . . . . Construction Impeded 1 | . . . . . . 1 Haulers Reinforced . | . . . . . . . Active Scanning Responses . | . . . . . . . Cargo Convoy Interrupts . | . . . . . . . Stealth | -11 -10 -10 -10 -9 -8 -8 --------- Run | Yrd Mat Min Exi Min Mat Sto Distress Signals 5 | . 2 . . . 3 . Communications Jammed . | . . . . . . . Distress Signals . | . . . . . . . Times Spotted 64 | . 19 8 . 3 20 14 Peak Tracking Total 8 | . 4 3 . 2 8 6 Tactical Retreats 3 | . 1 . . . 2 . Traps | -11 -10 -10 -10 -9 -8 -8 ------- Run | Yrd Mat Min Exi Min Mat Sto Traps Triggered 2 | . 2 . . . . . Indirectly . | . . . . . . . Trap Hack Attempts . | . . . . . . . Triggered . | . . . . . . . Disarmed . | . . . . . . . Reprogrammed . | . . . . . . . Reused . | . . . . . . . Traps Extracted . | . . . . . . . Installed . | . . . . . . . Triggered . | . . . . . . . Objects Rigged 2 | . . . . . . 2 Exploded 1 | . . . . . . 1 Machines | -11 -10 -10 -10 -9 -8 -8 ---------- Run | Yrd Mat Min Exi Min Mat Sto Machines Disabled 7 | . . 1 . . 1 5 Max in Single Turn 2 | . . 1 . . 1 2 Machines Repaired . | . . . . . . . Machines Dismantled . | . . . . . . . Machines Sabotaged . | . . . . . . . Overloaded Fab Kills . | . . . . . . . Hacking | -11 -10 -10 -10 -9 -8 -8 --------- Run | Yrd Mat Min Exi Min Mat Sto Machines Accessed 18 | . 5 1 4 1 2 5 Terminals 14 | . 5 1 . 1 2 5 Fabricators . | . . . . . . . Repair Stations . | . . . . . . . Recycling Units . | . . . . . . . Scanalyzers . | . . . . . . . Garrison Access . | . . . . . . . Total Hacks 86 | . 13 6 49 4 4 10 Successful 66 | . 4 2 49 1 2 8 Failed 20 | . 9 4 . 3 2 2 Catastrophic 4 | . 1 . . 1 2 . Database Lockouts . | . . . . . . . Manual 13 | . 1 4 1 3 4 . Terminals 37 | . 13 6 . 4 4 10 Fabricators . | . . . . . . . Repair Stations . | . . . . . . . Recycling Units . | . . . . . . . Scanalyzers . | . . . . . . . Garrison Access . | . . . . . . . Terminal Hacks 66 | . 4 2 49 1 2 8 Record 50 | . . 1 49 . . . Robot Analysis 2 | . 1 . . . . 1 Prototype ID Bank 2 | . 1 . . . . 1 Open Door 2 | . . . . . . 2 Branch Access Points 1 | . 1 . . . . . Emergency Access Points 1 | . . . . . 1 . Alert Level 4 | . . 1 . . 1 2 Locate Traps 1 | . . . . . . 1 Zone Layout 3 | . 1 . . 1 . 1 Fabricator Hacks . | . . . . . . . Repair Station Hacks . | . . . . . . . Recycling Unit Hacks . | . . . . . . . Scanalyzer . | . . . . . . . Garrison Access Hacks . | . . . . . . . Unauthorized Hacks . | . . . . . . . Terminals . | . . . . . . . Fabricators . | . . . . . . . Repair Stations . | . . . . . . . Recycling Units . | . . . . . . . Scanalyzers . | . . . . . . . Garrison Access . | . . . . . . . Data Cores Recovered . | . . . . . . . Used . | . . . . . . . Hacking Detections 10 | . 3 1 . 1 1 4 Full Trace Events 2 | . 1 . . . 1 . Feedback Events . | . . . . . . . Feedback Blocked . | . . . . . . . Robot Schematics Acquired . | . . . . . . . Robots Built . | . . . . . . . Authchips . | . . . . . . . Time . | . . . . . . . Total Robot Build Rating . | . . . . . . . Part Schematics Acquired . | . . . . . . . Parts Built . | . . . . . . . Authchips . | . . . . . . . Time . | . . . . . . . Total Part Build Rating . | . . . . . . . Parts Repaired . | . . . . . . . Time . | . . . . . . . Parts Recycled . | . . . . . . . Recycled Matter . | . . . . . . . Retrieved Matter . | . . . . . . . Retrieved Components . | . . . . . . . Parts Scanalyzed . | . . . . . . . Part Schematics Acquired . | . . . . . . . Parts Damaged . | . . . . . . . Bothacking | -11 -10 -10 -10 -9 -8 -8 ------------ Run | Yrd Mat Min Exi Min Mat Sto Used RIF Installer . | . . . . . . . Robots Hacked . | . . . . . . . Non-combat . | . . . . . . . Combat . | . . . . . . . Robot Hacks Applied . | . . . . . . . Relay Couplers Released . | . . . . . . . Fabnet Peak Effective % . | . . . . . . . Robots Rewired . | . . . . . . . Allies Hacked . | . . . . . . . Hacks Repelled . | . . . . . . . Allies | -11 -10 -10 -10 -9 -8 -8 -------- Run | Yrd Mat Min Exi Min Mat Sto Total Allies 3 | . . . . 3 . . Largest Group 2 | . . . . 2 2 . Highest-Rated Group 42 | . . . . 42 42 . Highest-Rated Ally 31 | . . . . 31 31 . Total Orders . | . . . . . . . Ally Attacks 27 | . . . . 7 20 . Total Damage 358 | . . . . 106 252 . Kills 5 | . . . . 2 3 . Allies Corrupted . | . . . . . . . Allies Melted . | . . . . . . . Intel | -11 -10 -10 -10 -9 -8 -8 ------- Run | Yrd Mat Min Exi Min Mat Sto Robot Analysis Total 2 | . 1 . . . . 1 Derelict Logs Recovered 3 | . . 1 . 2 . . Drone Launches . | . . . . . . . Drone Recoveries . | . . . . . . . Exploration | -11 -10 -10 -10 -9 -8 -8 ------------- Run | Yrd Mat Min Exi Min Mat Sto Turns Passed 4520 | 93 748 629 869 830 839 512 Spaces Moved 3387 | 63 452 466 487 558 846 515 Core 120 | 5 . . . . . 115 Treads 10 | . . . . . . 10 Legs 1881 | 58 452 466 487 172 246 . Wheels 427 | . . . . 386 . 41 Hover 2 | . . . . . . 2 Flight 947 | . . . . . 600 347 Fastest Speed 31 | 50 120 120 120 120 39 31 Average Speed 107 | 114 120 120 177 123 69 60 Slowest Speed 190 | 120 120 120 190 190 190 160 Overloaded Moves . | . . . . . . . Propulsion Burnouts . | . . . . . . . Robots Hopped 13 | . . . . . 9 4 Cave-ins Triggered . | . . . . . . . Exploration Rate (%) 53 | 5 74 65 73 100 29 31 Regions Visited 6 Branch Regions 4 Pre-discovered Areas 2 | . . 1 1 . . . Known Exits Taken 2 | . 1 . . 1 . . Unknown Exits Taken 4 | 1 . 1 1 . 1 . Scrap Searched 3 | . . 1 . 2 . . Spaces Dug 3 | . . . . . . 3 Terrain Destroyed 26 | . . 14 . . . 12 Melee . | . . . . . . . Projectile 3 | . . . . . . 3 AOE 23 | . . 14 . . . 9 Terrain Rammed . | . . . . . . . Walls Destroyed . | . . . . . . . Machines Disabled . | . . . . . . . Actions | -11 -10 -10 -10 -9 -8 -8 --------- Run | Yrd Mat Min Exi Min Mat Sto Total 4154 | 81 623 520 493 685 1080 672 Wait 498 | 9 119 23 . 95 151 101 Move 3355 | 62 451 465 486 557 827 507 Hop 13 | . . . . . 9 4 Pick Up 59 | 4 13 6 2 4 22 8 Fast Attach 21 | 6 3 1 . 1 7 3 Attach 25 | . 1 . 1 . 12 11 Detach 8 | . . . 1 1 4 2 Swap 24 | . 3 7 1 7 4 2 Drop 60 | . 12 8 2 7 27 4 Fire 55 | . 21 9 . 4 6 15 Melee 33 | . . . . 9 11 13 Ram . | . . . . . . . Kick 1 | . . 1 . . . . Crush . | . . . . . . . Escape Stasis . | . . . . . . . Rewire . | . . . . . . . Trap 2 | . . . . . . 2 Miscellaneous . | . . . . . . . Route ------- -11/Scrapyard -10/Materials (discovered 4 exits: [*Mat x2] / *Min x2) -10/Mines (discovered 2 exits: [*Mat] / *Exi) -10/Exiles (discovered 2 exits: *Min x2) -9/Mines (discovered 2 exits: *Mat x2) -8/Materials -8/Storage History --------- Turn | Location | Event 2 | -11/Scrapyard | Discovered new exit (range 16) 94 | -11/Scrapyard | Entered Materials 124 | -10/Materials | Discovered new exit (range 7) 258 | -10/Materials | Discovered new exit (range 3) 305 | -10/Materials | Build established: Mutant 355 | -10/Materials | Identified exit to Mines 534 | -10/Materials | Discovered new exit (range 5) 594 | -10/Materials | Derelicts attacked the area 842 | -10/Materials | Entered Mines 927 | -10/Mines | A weapon hastily lodged in a ceiling crevice suddenly fell to the ground 968 | -10/Mines | Discovered new exit (range 9) 984 | -10/Mines | Learned location of Storage (-8) 1015 | -10/Mines | Deemed a non-threat by the Exiles lab entrance 1015 | -10/Mines | Discovered new exit (range 5) 1471 | -10/Mines | Entered Exiles 1488 | -10/Exiles | Discovered new exit (range 15) 1509 | -10/Exiles | Met 8R-AWN 1529 | -10/Exiles | Met EX-HEX 1621 | -10/Exiles | Met EX-DEC 1674 | -10/Exiles | Learned location of Zion (-6) 1729 | -10/Exiles | Build established: Scavenger-Mutant 1746 | -10/Exiles | Discovered new exit (range 10) 1877 | -10/Exiles | Met EX-BIN 2007 | -10/Exiles | Aligned with FarCom system 2008 | -10/Exiles | Given EX-Vault access code 2062 | -10/Exiles | Opened EX-Vault 2086 | -10/Exiles | Found Prototype Device 2139 | -10/Exiles | Warned to stay clear of 0b10 Research branches 2340 | -10/Exiles | Left Exiles lab with PSU Rigger 2340 | -10/Exiles | Entered Mines 2491 | -9/Mines | Discovered new exit (range 8) 2541 | -9/Mines | Learned Materials interactive machine intel 2759 | -9/Mines | Identified exit to Materials 2764 | -9/Mines | Received a Mining Laser from a helpful Derelict 3170 | -9/Mines | Entered Materials 3170 | -8/Materials | Accompanied by 2 allies 3170 | -8/Materials | Evolved 4 slots: Propulsion x2, Utility x2 3171 | -8/Materials | Loaded intel: 19 interactive machine locations 3172 | -8/Materials | Identified PSU Rigger 3175 | -8/Materials | Led the pair of lost Derelicts to an unsafe place 3827 | -8/Materials | Discovered new exit (range 5) 4009 | -8/Materials | Entered Storage 4341 | -8/Storage | Core integrity fell below 50% 4359 | -8/Storage | Lost 7 parts (1p4n2w) 4478 | -8/Storage | Core integrity fell below 20% 4489 | -8/Storage | System corruption reached 10% 4508 | -8/Storage | System corruption reached 30% 4521 | -8/Storage | Destroyed by Y-45 Defender with Heavy Assault Rifle Last Messages --------------- 04488_ Integrated Corrupted Lgt. Treads (+10). 04488_ U-05 Engineer lays Concrete. 04491_ Acquired 17 matter. 04491_ U-05 Engineer lays Concrete. 04495_ AK8OIMM,HDP5OJZRHI2CCV&H 04495_ U-05 Engineer lays Concrete. 04497_ U-05 Engineer destroyed. 04497_ Integrated Corrupted Lgt. Treads (+10). 04501_ Acquired Lgt. Ion Engine. 04503_ Sml. Storage Unit destroyed. 04504_ U-05 Engineer lays Concrete. 04505_ Critical hit (Burn: +37). 04507_ Machine Analyzer destroyed. 04507_ U-05 Engineer builds a Wall. 04507_ Integrated Corrupted Com. Wheel (+2). 04512_ System corrupted: Component data lost. 04515_ Acquired Corrupted Adv. EMP Blaster. 04519_ Integrated Corrupted Adv. EMP Blaster (+5). 04519_ Complication: Lgt. Ion Engine rejected. 04519_ Complication: Lgt. Treads rejected. Map ----- +----------------------------------------------------+ | | | | | | | | | | | | | | | | | | | | | | | | | | | | | ??????????????????????????????????? | | ??????????????????????????????????? | | ????????????????????????????#####?? | | ????????????????????????????#! !#?? | | ??????#######################! !#?? | | ??????# [[ ##! !#?? | | ??????# [[ ##! !#?? | | ??????# ### ##?? | | ??????######## # T#?? | | ??????????#### + ##?? | | ?????######=# % ######?? | | ?????#]] @* ! % ######## | | ?????# #u% % # """" | | ?????#]]]] %Y g ! # """" | | ?????###### #=g % ! # """" | | ??????????#### [%! % # """" | | ?????????????# = %! + | | ?????????????# # | | ?????????????######^ ### ### | | ?????????????????## ####?# | | ?????????????????## ##????###""T"" | | ??????????????????#% ##??????#""""" | | ??????????????????#= ???????###### | | ?????????????????##= #????#######? | | ?????????????????## ##????# #? | | ?????????????????##! #?????# #? | | ?????????????????##%*#?????# T#? | | ?????????????????## ##????## ##? | | ?????????????????# #########+##? | | ?????????????????+ #?? | | ?????????????????# #?? | | ?????????????????# ##+#####+##?? | | ?????????????????## ## #??? | | ??????????????????# ## """ #??? | | ??????????????????# ## """ ##?? | | ??????????????????# ## """ T#?? | +----------------------------------------------------+ Best States ------------- Heat Dissipation 45 Energy Generation 14 Energy Capacity 250 Matter Stores 450 Matter Capacity 450 Sight Range 16 Terrain Scan Density 10 Additional Mass Support 6 Armor Coverage 750 Evasion (%) 63 Recoil Reduction 3 Authchip Count 1 Item Schematics ----------------- None Robot Schematics ------------------ None Fabricated ------------ Nothing Alien Tech Used ----------------- None Achievements -------------- None Challenges ------------ None Game ------ Seed ImpactBoreField Manual? 0 Play Time 02:28:51 Cumulative 29.7 hours Start 2024.06.14 @ 21:43:24 End 2024.06.17 @ 23:19:29 Sessions 7 Manual Loads 0 Difficulty Rogue Special Mode None Game No. 13 Rogue 13 Adventurer 0 Explorer 0 Win Type - Total 0 Types 0/0/0/0/0/0/0/0/0 Lore% 18 Gallery% 22 Achievement% 17 Wizard Run 0 Options --------- Layout 0 ASCII 1 Keyboard 1 Movement Vi Keybinds 0 Fullscreen 1 Font 24/Smallcaps Map View 76x50 Zoom Use 0% Tactical HUD 1 Map Filters NONE Filters NONE Steam 1 RUN: 42d18096-82e4-40db-a3c0-efc2cce759ef